fUSD/lending_fUSD_20240616
["ID","MTS","AMOUNT","RATE_DAILY","PERIOD"]
[329639483,1718523575650,-4495.93839095,0.000118,2]
[329639484,1718523575693,-1976.7844549,0.000126,2]
[329639485,1718523575730,-250.0,0.00012622,2]
[329639486,1718523575780,-500.0,0.00012858,2]
[329639487,1718523575829,-1499.19188021,0.0001298,2]
[329639488,1718523602179,241.86774518,0.00012999,2]
[329639489,1718523604196,1036.21752876,0.0001298,2]
[329639490,1718523673745,152.0107055,0.00027,30]
[329639491,1718523683378,-502.06770878,0.00012979,2]
[329639492,1718523683430,-9497.93229122,0.0001298,2]
[329639493,1718523683993,-10000.0,0.0001298,2]
[329639494,1718523684820,-10000.0,0.0001298,2]
[329639495,1718523721703,-716.68717565,0.00012979,2]
[329639496,1718523721756,-8428.94573219,0.00012979,2]
[329639497,1718523721789,-854.36709216,0.0001298,2]
[329639498,1718523722265,-10000.0,0.0001298,2]
[329639499,1718523740494,-155.0,0.00012979,2]
[329639500,1718523740528,-9845.0,0.0001298,2]
[329639501,1718523759947,-10000.0,0.0001298,2]
[329639502,1718523785780,5300.0,0.000275,120]
[329639504,1718524017197,-2317.77332563,0.00012727,2]
[329639508,1718524183136,250.0,0.00012312,2]
[329639509,1718524202222,150.0,0.00012312,2]
[329639510,1718524202292,150.0,0.00012312,2]
[329639511,1718524202727,150.0,0.00012312,2]
[329639512,1718524202917,150.0,0.00012312,2]
[329639513,1718524208695,150.0,0.00012312,2]
[329639514,1718524208912,150.0,0.00012312,2]
[329639515,1718524209136,150.0,0.00012312,2]
[329639516,1718524209333,150.0,0.00012312,2]
[329639517,1718524209833,150.0,0.00012312,2]
[329639518,1718524210039,150.0,0.00012312,2]
[329639519,1718524210289,150.0,0.00012312,2]
[329639520,1718524210457,150.0,0.00012312,2]
[329639521,1718524210660,150.0,0.00012312,2]
[329639522,1718524211356,150.0,0.00012312,2]
[329639523,1718524211445,165.64016405,0.00012312,2]
[329639528,1718524232933,-158.67658598,0.00012618,2]
[329639531,1718524232975,-152.52,0.00012711,2]
[329639535,1718524233017,-152.52,0.00012714,2]
[329639538,1718524233052,-152.52,0.00012718,2]
[329639540,1718524233084,-152.52,0.00012722,2]
[329639541,1718524233098,-152.52,0.00012725,2]
[329639542,1718524233110,-150.0,0.00012726,2]
[329639543,1718524233122,-7347.87096264,0.00012727,2]
[329639544,1718524233826,-598.795,0.00012727,2]
[329639545,1718524233857,-8495.743034,0.00012727,2]
[329639546,1718524235014,-18883.50102379,0.00012727,2]
[329639547,1718524235027,-20820.46667437,0.00012727,2]
[329639548,1718524235039,-152.52,0.00012729,2]
[329639549,1718524235056,-152.52,0.00012733,2]
[329639550,1718524235084,-152.52,0.00012737,2]
[329639551,1718524235096,-152.52,0.0001274,2]
[329639552,1718524235113,-152.52,0.00012744,2]
[329639553,1718524235124,-152.52,0.00012748,2]
[329639554,1718524235141,-152.52,0.00012752,2]
[329639555,1718524235156,-152.52,0.00012755,2]
[329639556,1718524235167,-152.52,0.00012759,2]
[329639557,1718524235180,-152.52,0.00012763,2]
[329639558,1718524235200,-152.52,0.00012766,2]
[329639559,1718524235224,-152.52,0.0001277,2]
[329639560,1718524235249,-152.52,0.00012774,2]
[329639561,1718524235281,-536.64594277,0.00012998,2]
[329639562,1718524235292,-3059.65484246,0.00013,2]
[329639563,1718524235304,-153.05640066,0.00013,2]
[329639564,1718524235556,-346.93359934,0.00013,2]
[329639565,1718524235567,-10.5383878,0.00013,2]
[329639608,1718524245369,-250.0,0.00013104,2]
[329639609,1718524245381,-172.75,0.00013202,2]
[329639610,1718524245393,-150.0,0.00013205,2]
[329639611,1718524245410,-628.9,0.0001323,2]
[329639612,1718524245424,-2498.34,0.00013292,2]
[329639613,1718524245439,-1303.19819706,0.00013298,2]
[329639614,1718524245452,-187.14,0.00013298,2]
[329639615,1718524245467,-172.75,0.0001334,2]
[329639616,1718524245487,-169.78,0.00013389,2]
[329639617,1718524245527,-2830.71777537,0.00013398,2]
[329639618,1718524245542,-805.27464937,0.00013398,2]
[329639619,1718524245873,-2645.76757526,0.00013398,2]
[329639620,1718524245947,-177.91,0.00013414,2]
[329639621,1718524245977,-324.40312278,0.00013438,2]
[329639622,1718524246022,-172.75,0.00013477,2]
[329639623,1718524246046,-1000.0,0.000135,2]
[329639624,1718524246094,-1178.71145965,0.00013528,2]
[329639625,1718524246607,-1880.31854035,0.00013528,2]
[329639626,1718524246622,-172.75,0.00013615,2]
[329639627,1718524246639,-1453.04,0.00013699,2]
[329639628,1718524246651,-459.04,0.00013699,2]
[329639629,1718524246664,-1695.32207814,0.00013705,2]
[329639630,1718524248196,-306.17437836,0.00013705,2]
[329639631,1718524248212,-2316.57498465,0.00013705,2]
[329639632,1718524248621,-5570.45453968,0.00013705,2]
[329639633,1718524249064,-359.82746903,0.00013705,2]
[329639634,1718524250212,-810.29111667,0.00013705,2]
[329639635,1718524257433,566.01,0.00012425,2]
[329639646,1718525227462,-716.68717565,0.00011013,2]
[329639647,1718525227522,-2371.26555014,0.00011014,2]
[329639648,1718525227585,-858.78040361,0.00011014,2]
[329639652,1718525352102,-158.67658596,0.00011018,2]
[329639653,1718525352134,-2001.83778481,0.00011125,2]
[329639654,1718525352169,-537.7,0.00011126,2]
[329639655,1718525352216,-4763.75015336,0.00012425,2]
[329639656,1718525363028,-250.0,0.00012725,2]
[329639657,1718525363075,-300.0,0.00012788,2]
[329639658,1718525363116,-150.0,0.00012788,2]
[329639659,1718525363348,-150.0,0.00012788,2]
[329639660,1718525363381,-2065.1243,0.00012789,2]
[329639666,1718525434152,-250.4957,0.00012789,2]
[329639667,1718525434167,-667.34946861,0.00012895,2]
[329639668,1718525434213,-1899.32273139,0.00012895,2]
[329639669,1718525434236,-3259.45080742,0.00012998,2]
[329639674,1718525440192,-821.17116667,0.00012998,2]
[329639675,1718525440233,-247.72747554,0.00013,2]
[329639676,1718525440741,-52.17378244,0.00013,2]
[329639677,1718525440755,-2451.28,0.00013115,2]
[329639678,1718525440772,-172.75,0.00013126,2]
[329639679,1718525440798,-242.22,0.00013191,2]
[329639680,1718525440810,-381.31211003,0.00013438,2]
[329639681,1718525440826,-414.78530048,0.00013503,2]
[329639682,1718525440838,-1000.0,0.00013613,2]
[329639683,1718525440849,-155.14,0.00013699,2]
[329639684,1718525440872,-229.52,0.00013699,2]
[329639685,1718525440883,-2903.00547874,0.00013704,2]
[329639686,1718525440903,-3000.0,0.00013705,2]
[329639687,1718525440915,-756.54200709,0.000138,2]
[329639688,1718525440944,-3601.02377061,0.00013805,2]
[329639689,1718525440955,-172.75,0.0001381,2]
[329639690,1718525440981,-14755.1167,0.000139,2]
[329639691,1718525441040,-179.38098978,0.000139,2]
[329639692,1718525441084,-10593.9284,0.000139,2]
[329639693,1718525441100,-266.67102255,0.000139,2]
[329639694,1718525441152,-194.3878,0.000139,2]
[329639695,1718525441176,-4883.89085437,0.000139,2]
[329639696,1718525441197,-157.60710861,0.000139,2]
[329639697,1718525441213,-3299.3747,0.000139,2]
[329639698,1718525441233,-4606.6367,0.000139,2]
[329639701,1718525441252,-4859.1422,0.000139,2]
[329639703,1718525441277,-901.38567856,0.000139,2]
[329639705,1718525441289,-23565.4976,0.000139,2]
[329639707,1718525441353,-300.3983,0.000139,2]
[329639708,1718525441375,-166.51988215,0.000139,2]
[329639709,1718525441421,-327.16831511,0.000139,2]
[329639710,1718525441449,-756.54200709,0.000139,2]
[329639711,1718525441459,-20110.560966,0.00013989,2]
[329639712,1718525441484,-3009.3015646,0.00013989,2]
[329639713,1718525441495,-2611.39152184,0.00013998,2]
[329639714,1718525441524,-525.92177641,0.00013998,2]
[329639715,1718525441546,-1386.28293088,0.00013998,2]
[329639716,1718525441558,-836.73680796,0.00013998,2]
[329639717,1718525441570,-1254.57506773,0.00013998,2]
[329639718,1718525441609,-155.0,0.00013998,2]
[329639719,1718525441620,-264.09296082,0.00013998,2]
[329639720,1718525441660,-2339.1107069,0.00013998,2]
[329639721,1718525441716,-490.61954782,0.00013998,2]
[329639722,1718525441744,-157.74724644,0.00013998,2]
[329639723,1718525441756,-155.0,0.00013998,2]
[329639724,1718525441798,-1392.89650102,0.00013998,2]
[329639725,1718525441811,-241.29624149,0.00013998,2]
[329639726,1718525441844,-307.61646073,0.00013998,2]
[329639727,1718525441856,-1219.0116262,0.00013998,2]
[329639728,1718525441870,-155.08275231,0.00013998,2]
[329639729,1718525441911,-546.12541869,0.00013998,2]
[329639730,1718525441956,-164.37282357,0.00013998,2]
[329639731,1718525441983,-193.1336079,0.00013998,2]
[329639732,1718525442033,-5510.04883881,0.00013998,2]
[329639733,1718525442076,-626.16539489,0.00013998,2]
[329639734,1718525442112,-195.83334803,0.00013998,2]
[329639735,1718525442176,-3686.20541867,0.00013998,2]
[329639736,1718525442199,-155.47371377,0.00013998,2]
[329639737,1718525442215,-447.64379879,0.00013998,2]
[329639738,1718525442239,-786.1308027,0.00013998,2]
[329639739,1718525442262,-204.46278,0.00013998,2]
[329639740,1718525442292,-1935.33817195,0.00013998,2]
[329639741,1718525442312,-400.0,0.00013998,2]
[329639742,1718525442326,-163.41552073,0.00013998,2]
[329639743,1718525442337,-1465.51183518,0.00013998,2]
[329639744,1718525442347,-525.68722811,0.00013998,2]
[329639745,1718525442364,-429.97845481,0.00013998,2]
[329639746,1718525442381,-377.76991618,0.00013998,2]
[329639747,1718525442444,-2412.96763589,0.00013998,2]
[329639748,1718525442476,-558.47859717,0.00013998,2]
[329639749,1718525442530,-425.46409834,0.00013998,2]
[329639750,1718525442557,-1020.87865897,0.00013998,2]
[329639751,1718525442592,-7445.71532994,0.00013999,2]
[329639752,1718525442605,-209.08499402,0.00013999,2]
[329639753,1718525442616,-3881.98949315,0.00013999,2]
[329639754,1718525442626,-251.89772737,0.00013999,2]
[329639755,1718525442637,-656076.2651273,0.00014,2]
[329639756,1718525442774,-2104.93626584,0.00014,2]
[329639762,1718525445739,-275.950685,0.00014,2]
[329639763,1718525445781,-4330.59626476,0.00014,2]
[329639764,1718525446153,-12936.41849822,0.00014,2]
[329639765,1718525446519,-976.920342,0.000139,2]
[329639766,1718525446534,-619.55428415,0.000139,2]
[329639767,1718525446565,-4925.09386287,0.000139,2]
[329639768,1718525446596,-5610.23093713,0.00014,2]
[329639770,1718525446937,-674.44,0.00014,2]
[329639775,1718525448576,-566.18888113,0.00014,2]
[329639776,1718525448628,-650.15663534,0.00014,2]
[329639777,1718525448660,-2818.80991683,0.00014,2]
[329639778,1718525448689,-493.706,0.00014,2]
[329639779,1718525449056,-5373.89872731,0.00014,2]
[329639780,1718525449141,-412.68527043,0.00014,2]
[329639781,1718525449192,-4295.78065993,0.00014,2]
[329639782,1718525449220,-103071.51108845,0.00014,2]
[329639783,1718525449268,-585.11235056,0.00014,2]
[329639784,1718525449294,-1737.35502401,0.00014,2]
[329639785,1718525449371,-356.69583525,0.00014,2]
[329639786,1718525449419,-808.54438165,0.00014,2]
[329639787,1718525449679,-148209.00549477,0.00014,2]
[329639788,1718525449695,-44513.45040144,0.00014,2]
[329639789,1718525449716,-279.82539136,0.00014,2]
[329639790,1718525449780,-33047.51348084,0.00014,2]
[329639792,1718525450307,-330.46384932,0.00014,2]
[329639802,1718526174297,-157.16271108,0.00012589,2]
[329639803,1718526174389,-589.32843621,0.00012688,2]
[329639804,1718526174463,-701.1076,0.00012689,2]
[329639805,1718526174524,-1299.99774208,0.00013298,2]
[329639806,1718526174584,-364.17181321,0.00013829,2]
[329639807,1718526174637,-200.0,0.00013887,2]
[329639808,1718526174747,-500.0,0.00013887,2]
[329639809,1718526174807,-200.0,0.00013887,2]
[329639810,1718526174870,-500.0,0.00013888,2]
[329639811,1718526174932,-200.0,0.00013888,2]
[329639812,1718526175011,-500.0,0.00013888,2]
[329639813,1718526175107,-500.0,0.00013888,2]
[329639814,1718526175176,-200.0,0.00013888,2]
[329639815,1718526175258,-209.87,0.0001389,3]
[329639816,1718526175338,-534.4971,0.000139,2]
[329639817,1718526175449,-157.16271108,0.000139,2]
[329639818,1718526175497,-589.32843621,0.000139,2]
[329639819,1718526175553,-701.1076,0.000139,2]
[329639820,1718526175575,-1299.99774208,0.000139,2]
[329639821,1718526175622,-364.17181321,0.000139,2]
[329639822,1718526175680,-95.58689742,0.000139,2]
[329639823,1718526175692,-104.41310258,0.000139,2]
[329639824,1718526175864,-500.0,0.000139,2]
[329639825,1718526175924,-200.0,0.000139,2]
[329639826,1718526175992,-500.0,0.000139,2]
[329639827,1718526176244,-200.0,0.000139,2]
[329639828,1718526176294,-500.0,0.000139,2]
[329639829,1718526176352,-500.0,0.000139,2]
[329639830,1718526176389,-200.0,0.000139,2]
[329639831,1718526176425,-209.87,0.000139,2]
[329639832,1718526176494,-534.4971,0.00011679,2]
[329639833,1718526176523,-23.8529,0.00011679,2]
[329639834,1718526176534,-1663.87629484,0.000139,2]
[329639837,1718526448338,-3000.0,0.0001386,2]
[329639838,1718526448384,-258.1899,0.00013889,2]
[329639839,1718526448417,-672.94387223,0.00013899,2]
[329639840,1718526448461,-22969.2207014,0.000139,2]
[329639851,1718526635822,-31253.73201743,0.000139,2]
[329639856,1718526641052,-10503.92848375,0.000139,2]
[329639857,1718526641078,-4476.89994983,0.000139,2]
[329639858,1718526641093,-14082.92338558,0.000139,2]
[329639859,1718526641113,-1000.51593,0.000139,2]
[329639860,1718526641462,-250.0,0.000139,2]
[329639861,1718526641510,-2982.2275418,0.000139,2]
[329639862,1718526641973,-1970.62949997,0.000139,2]
[329639863,1718526641985,-558.35,0.00013943,2]
[329639864,1718526642009,-12812.54814075,0.00013989,2]
[329639865,1718526642026,-512.92239275,0.00013989,2]
[329639866,1718526642088,-288.12424113,0.00013989,2]
[329639867,1718526642152,-3145.12011062,0.00013989,2]
[329639880,1718526646092,-376.16154095,0.00013989,2]
[329639881,1718526646817,-1650.31387522,0.00013989,2]
[329639882,1718526646944,-25.92344211,0.00013989,2]
[329639883,1718526647399,-857.04381307,0.00013989,2]
[329639884,1718526647421,-3384.0148494,0.00013989,2]
[329639885,1718526647434,-288.1124859,0.00013989,2]
[329639886,1718526647449,-514.1015192,0.00013989,2]
[329639887,1718526647490,-839.72252651,0.00013999,2]
[329639888,1718526647721,-212.75103229,0.00014,2]
[329639889,1718526647738,-274.733615,0.00014,2]
[329639913,1718526649356,-145.51535271,0.00014,2]
[329639915,1718526649376,-1237.00121542,0.00014,2]
[329639918,1718526649418,-432.41499995,0.00014,2]
[329639919,1718526649449,-737.24414461,0.00014,2]
[329639922,1718526649956,-33885.74537081,0.00014,2]
[329639923,1718526649972,-843.4,0.00014,2]
[329639924,1718526650007,-1319.0,0.00014,2]
[329639925,1718526650024,-1534.93458374,0.00014,2]
[329639926,1718526650040,-14418.31365012,0.00014,2]
[329639927,1718526650760,-382.51727014,0.00014,2]
[329639931,1718526651336,-10606.32078286,0.00014,2]
[329639968,1718527539130,-762.11180794,0.00012738,2]
[329639969,1718527539182,-502.51,0.00012739,2]
[329639970,1718527539261,-200.0,0.00013888,2]
[329639971,1718527539305,-500.0,0.00013888,2]
[329639972,1718527539344,-200.0,0.00013888,2]
[329639973,1718527539384,-300.0,0.00013899,2]
[329639974,1718527539424,-6756.0257405,0.000139,2]
[329639975,1718527539466,-166.51988215,0.000139,2]
[329639976,1718527539496,-1000.0,0.000139,2]
[329639977,1718527539562,-4103.82495402,0.000139,2]
[329639978,1718527539593,-2500.0,0.000139,2]
[329639979,1718527539623,-264.4433456,0.00013989,2]
[329639980,1718527539660,-2274.1084865,0.00013989,2]
[329639981,1718527539690,-13785.2443797,0.00013989,2]
[329639982,1718527539742,-471.8668309,0.00013989,2]
[329639983,1718527539780,-361.8585681,0.00013989,2]
[329639984,1718527539833,-2498.4635933,0.00013989,2]
[329639985,1718527539883,-153.3727566,0.00013989,2]
[329639986,1718527539941,-155.24365363,0.00013998,2]
[329639987,1718527539981,-511.70591459,0.00013999,2]
[329639988,1718527540053,-517.0,0.00014,2]
[329639989,1718527540096,-18815.70008647,0.00014,2]
[329639995,1718527834593,-762.11180794,0.00013899,2]
[329639996,1718527834626,-110.40795612,0.000139,2]
[329639997,1718527834649,-422.74763482,0.000139,2]
[329639998,1718527834667,-137.04520906,0.000139,2]
[329639999,1718527834679,-864.66695017,0.000139,2]
[329640000,1718527835761,-457.29170079,0.000139,2]
[329640002,1718527835792,-351.56071379,0.000139,2]
[329640014,1718527841502,-796.44791203,0.000139,2]
[329640021,1718527845593,-768.8456625,0.000139,2]
[329640023,1718527845611,-174.8925082,0.00013989,2]
[329640026,1718527845623,-1849.7025167,0.00013989,2]
[329640029,1718527845634,-224.9946439,0.0001399,2]
[329640031,1718527845646,-11135.1700717,0.0001399,2]
[329640035,1718527845659,-381.1551879,0.0001399,2]
[329640037,1718527845670,-2018.1591464,0.0001399,2]
[329640041,1718527845689,-105568.21179135,0.00014,2]
[329640044,1718527845705,-281881.1587779,0.00014,2]
[329640046,1718527845722,-1482.93474898,0.00014,2]
[329640048,1718527845740,-635.74,0.00014,2]
[329640067,1718527846650,-2875.82477649,0.00014,2]
[329640068,1718527846677,-7295.92403971,0.00014,2]
[329640069,1718527847676,-1611.00544294,0.00014,2]
[329640070,1718527847703,-3972.09929284,0.00014,2]
[329640071,1718527847730,-540801.54265535,0.00014,2]
[329640072,1718527847756,-467.31889,0.00014,2]
[329640073,1718527847802,-542.70878457,0.00014,2]
[329640082,1718527848178,-172.13886012,0.00013999,2]
[329640084,1718527848225,-161.12711745,0.00014,2]
[329640086,1718527848248,-2229.61101566,0.00014,2]
[329640088,1718527848277,-6035.49253852,0.00014,2]
[329640089,1718527848325,-475.67259041,0.00014,2]
[329640090,1718527848361,-3388.06694715,0.00014,2]
[329640091,1718527849664,-256.8779692,0.00014,2]
[329640093,1718527849701,-2343.36758848,0.00014,2]
[329640094,1718527849716,-781.46421987,0.00014,2]
[329640095,1718527849746,-1263.84865234,0.00014,2]
[329640096,1718527849778,-27656.18092019,0.00014,2]
[329640097,1718527850596,-7148.8,0.00014,2]
[329640098,1718527850628,-602.34,0.00014,2]
[329640099,1718527850657,-283.2823812,0.00014,2]
[329640100,1718527850683,-1211.45319428,0.00014,2]
[329640101,1718527850707,-36433.99331724,0.00014,2]
[329640102,1718527850738,-306.20991413,0.00014,2]
[329640103,1718527850774,-335.30570427,0.00014,2]
[329640104,1718527850789,-3405.91380266,0.00014,2]
[329640105,1718527850861,-2310.06028183,0.00014,2]
[329640106,1718527850896,-1479.06618087,0.00014,2]
[329640114,1718528195296,-2130.45849817,0.000295,120]
[329640115,1718528195334,-150.0,0.00029868,120]
[329640116,1718528195375,-500.0,0.0003,120]
[329640117,1718528195426,-486.0,0.0003,120]
[329640123,1718528504038,477.38,0.00010849,2]
[329640126,1718528595334,155.0,0.00010849,2]
[329640128,1718528603056,-157.061612,0.00029948,42]
[329640129,1718528603119,-157.061612,0.00029948,44]
[329640130,1718528603157,-157.061612,0.00029948,46]
[329640131,1718528603202,-251.061612,0.00029948,50]
[329640133,1718528609332,287.92114584,0.00010849,2]
[329640134,1718528777980,500.0,0.0003,40]
[329640135,1718528791713,-292.09637223,0.0002739,30]
[329640136,1718528791749,-1000.0,0.00027397,30]
[329640137,1718528791785,-1000.0,0.00027397,30]
[329640138,1718528791822,-823.69487498,0.00027397,30]
[329640139,1718528791872,-2000.0,0.00027397,30]
[329640140,1718528791915,-989.58095816,0.00027534,30]
[329640141,1718528791955,-989.58095816,0.00027644,30]
[329640142,1718528791993,-989.58095816,0.00027753,30]
[329640143,1718528792027,-989.58095816,0.0002789,30]
[329640144,1718528792082,-962.22971172,0.00028,30]
[329640145,1718528792129,-989.58095816,0.00028,30]
[329640146,1718528792178,-989.58095816,0.0002811,30]
[329640147,1718528792214,-989.58095816,0.00028219,30]
[329640148,1718528792248,-989.58095816,0.00028356,30]
[329640149,1718528792277,-989.58095816,0.00028466,30]
[329640150,1718528792312,-989.58095816,0.00028575,30]
[329640151,1718528792363,-989.58095816,0.00028685,30]
[329640152,1718528792401,-989.58095816,0.00028822,30]
[329640153,1718528792447,-989.58095816,0.00028932,30]
[329640154,1718528792477,-323.92317652,0.00029,30]
[329640155,1718528792519,-9139.70835161,0.00029,30]
[329640156,1718528792553,-1800.0,0.00029,30]
[329640157,1718528792583,-989.58095816,0.00029041,30]
[329640158,1718528792620,-989.58095816,0.00029151,30]
[329640159,1718528792665,-1208.0,0.00029482,30]
[329640160,1718528792703,-12117.92819437,0.000298,30]
[329640168,1718529032866,-155.0,0.00012663,2]
[329640169,1718529032891,-1068.73915113,0.00012664,2]
[329640170,1718529032911,-1974.74,0.00012665,2]
[329640171,1718529032934,-200.0,0.00012683,2]
[329640172,1718529032959,-500.0,0.00012716,2]
[329640173,1718529032982,-1000.0,0.00012719,2]
[329640174,1718529032994,-250.0,0.00012726,2]
[329640175,1718529033021,-150.0,0.00012728,2]
[329640176,1718529033034,-23890.0,0.00012729,2]
[329640177,1718529033046,-165.26,0.00012763,2]
[329640178,1718529033076,-154.62,0.00012842,2]
[329640179,1718529033109,-154.62,0.0001301,2]
[329640180,1718529033125,-477.38,0.00013113,2]
[329640181,1718529033141,-499.99,0.00013113,2]
[329640182,1718529033164,-154.62,0.00013177,2]
[329640183,1718529033184,-154.62,0.00013344,2]
[329640184,1718529033209,-154.62,0.00013512,2]
[329640185,1718529033238,-223.29,0.00013643,2]
[329640186,1718529033252,-223.29,0.00013647,2]
[329640187,1718529033268,-223.29,0.00013651,2]
[329640188,1718529033288,-223.29,0.00013654,2]
[329640189,1718529033316,-1206.59,0.00013654,2]
[329640190,1718529033361,-223.29,0.00013658,2]
[329640191,1718529033380,-150.99,0.00013658,2]
[329640192,1718529033396,-223.29,0.00013661,2]
[329640193,1718529033423,-223.29,0.00013665,2]
[329640194,1718529033443,-223.29,0.00013669,2]
[329640195,1718529033490,-705.25514171,0.00013669,2]
[329640196,1718529033511,-223.29,0.00013672,2]
[329640197,1718529033525,-223.29,0.00013676,2]
[329640198,1718529033551,-223.29,0.00013679,2]
[329640199,1718529033585,-223.29,0.00013683,2]
[329640200,1718529033600,-223.29,0.00013686,2]
[329640201,1718529033621,-223.29,0.0001369,2]
[329640202,1718529033652,-223.29,0.00013694,2]
[329640203,1718529033678,-223.29,0.00013697,2]
[329640204,1718529033712,-156.74,0.00013699,2]
[329640205,1718529033726,-280.64,0.00013699,2]
[329640206,1718529033740,-2751.0,0.00013699,2]
[329640207,1718529033758,-223.29,0.00013701,2]
[329640208,1718529033770,-223.29,0.00013704,2]
[329640209,1718529033790,-223.29,0.00013708,2]
[329640210,1718529033828,-223.29,0.00013712,2]
[329640211,1718529033848,-3000.0,0.0001386,2]
[329640212,1718529033861,-500.0,0.00013888,2]
[329640213,1718529033872,-200.0,0.00013888,2]
[329640214,1718529033907,-373.3922,0.00013898,2]
[329640215,1718529033920,-1939.7571,0.000139,2]
[329640216,1718529033933,-753.15564966,0.000139,2]
[329640217,1718529033945,-164.51180693,0.000139,2]
[329640218,1718529033988,-1000.0,0.000139,2]
[329640219,1718529034018,-1295.8466,0.000139,2]
[329640220,1718529034050,-193.88261943,0.000139,2]
[329640221,1718529034086,-5058.20596938,0.000139,2]
[329640222,1718529034108,-100000.0,0.000139,2]
[329640223,1718529034120,-826.4806,0.000139,2]
[329640224,1718529034135,-661.546,0.000139,2]
[329640225,1718529034146,-19568.4671,0.000139,2]
[329640226,1718529034159,-1000.0,0.000139,2]
[329640227,1718529034171,-4893.44236074,0.000139,2]
[329640228,1718529034187,-2232.43203185,0.00013998,2]
[329640229,1718529034213,-718.83475834,0.00013998,2]
[329640230,1718529034226,-557.39675947,0.00013998,2]
[329640231,1718529034250,-10540.40471413,0.00013998,2]
[329640232,1718529034281,-172.7696657,0.00013998,2]
[329640233,1718529034322,-7544.96004909,0.00013998,2]
[329640234,1718529034404,-3375.07812476,0.00013998,2]
[329640235,1718529034424,-22654.7548897,0.00013998,2]
[329640236,1718529034492,-794.83271597,0.00013998,2]
[329640237,1718529034506,-170.66232196,0.00013998,2]
[329640238,1718529034524,-209.02949711,0.00013998,2]
[329640239,1718529034572,-338.68648196,0.00013998,2]
[329640240,1718529034589,-155.0,0.00013998,2]
[329640241,1718529034602,-277.6074059,0.00013998,2]
[329640242,1718529034620,-287.01846402,0.00013998,2]
[329640243,1718529034636,-362.64070701,0.00013998,2]
[329640244,1718529034671,-217.92376061,0.00013999,2]
[329640245,1718529034704,-156.76769233,0.00013999,2]
[329640246,1718529034733,-511.70591459,0.00013999,2]
[329640247,1718529034760,-66618.67650497,0.00014,2]
[329640249,1718529035089,-474.37904849,0.00014,2]
[329640250,1718529035103,-1026.39824093,0.00014,2]
[329640251,1718529035148,-897.95,0.00014,2]
[329640252,1718529035172,-1578.55756815,0.00014,2]
[329640253,1718529035281,-309.20737586,0.00014,2]
[329640254,1718529035306,-482.99531256,0.00014,2]
[329640255,1718529035378,-3674.28117892,0.00014,2]
[329640256,1718529035619,-325.86225034,0.000139,2]
[329640257,1718529035648,-6974.5358716,0.00014,2]
[329640258,1718529035686,-2553.17372,0.00014,2]
[329640259,1718529035758,-661.68277074,0.00014,2]
[329640260,1718529035819,-1935.23226309,0.00014,2]
[329640261,1718529035882,-50139.46094323,0.00014,2]
[329640265,1718529038494,-623.192175,0.000139,2]
[329640284,1718529043690,-483.34856552,0.000139,2]
[329640286,1718529043710,-43.06143448,0.00013999,2]
[329640287,1718529044077,-326.31911622,0.00013999,2]
[329640288,1718529044091,-18.30644807,0.00014,2]
[329640289,1718529044135,-2084.61684403,0.00014,2]
[329640290,1718529044155,-892.19844599,0.00014,2]
[329640291,1718529044170,-522.00656815,0.00014,2]
[329640292,1718529044369,-285.43780332,0.00014,2]
[329640293,1718529044391,-7452.48,0.00014,2]
[329640294,1718529044517,-110723.05412072,0.00014,2]
[329640295,1718529044553,-1874.57460962,0.00014,2]
[329640296,1718529044602,-522.59993538,0.00014,2]
[329640297,1718529045443,-1086.34670665,0.00014,2]
[329640318,1718529047500,-1421.277422,0.00014,2]